fUSD/lending_fUSD_20250110
["ID","MTS","AMOUNT","RATE_DAILY","PERIOD"]
[348385893,1736494713670,-171.3,0.0002467,30]
[348385894,1736494713716,-150.5,0.0002468,30]
[348385895,1736494713758,-150.5,0.0002469,30]
[348385896,1736494713801,-280.0,0.000253,10]
[348385897,1736494713847,-417.69123534,0.000269,30]
[348385898,1736494713888,-1396.2178224,0.00026978,34]
[348385899,1736494713933,-1995139.04094226,0.0002699,30]
[348385900,1736494719980,-5730.95905774,0.0002699,30]
[348385901,1736494720022,-865.162514,0.00026999,120]
[348385902,1736494720061,-500.0,0.00026999,120]
[348385903,1736494720103,-1800.0,0.00027,28]
[348385904,1736494720147,-1848.41301448,0.00027,14]
[348385905,1736494720187,-150.0,0.00027,120]
[348385906,1736494720495,-300.0,0.00027,90]
[348385907,1736494720537,-100000.0,0.00027,30]
[348385908,1736494720576,-246695.18096764,0.00027,20]
[348385909,1736494720613,-789.95475653,0.00027,120]
[348385910,1736494720656,-678.58568119,0.00027,120]
[348385911,1736494720695,-2000.0,0.00027,120]
[348385912,1736494720736,-2000.0,0.00027,120]
[348385913,1736494720773,-44137.5328531,0.00027,30]
[348385914,1736494720814,-2006.58,0.00027,120]
[348385915,1736494720854,-20000.0,0.00027,30]
[348385916,1736494720905,-287.543771,0.000272,44]
[348385917,1736494720945,-287.54377099,0.000272,44]
[348385918,1736494720984,-287.54377099,0.000272,44]
[348385919,1736494721024,-287.54377099,0.000272,44]
[348385920,1736494721069,-287.54377099,0.000272,44]
[348385921,1736494721108,-811.85758398,0.000273,120]
[348385922,1736494721145,-1121.07450377,0.0002736,120]
[348385923,1736494721185,-2000.0,0.00027397,30]
[348385924,1736494721225,-2000.0,0.00027397,30]
[348385925,1736494721264,-2000.0,0.00027397,30]
[348385926,1736494721305,-2000.0,0.00027397,30]
[348385927,1736494721350,-2000.0,0.00027397,30]
[348385928,1736494721391,-2000.0,0.00027397,30]
[348385929,1736494721433,-2000.0,0.00027397,30]
[348385930,1736494721481,-2000.0,0.00027397,30]
[348385931,1736494721520,-2000.0,0.00027397,30]
[348385932,1736494721560,-2000.0,0.00027397,30]
[348385933,1736494721599,-2000.0,0.00027397,30]
[348385934,1736494721639,-2000.0,0.00027397,30]
[348385935,1736494721680,-2000.0,0.00027397,30]
[348385936,1736494721720,-2000.0,0.00027397,30]
[348385937,1736494721761,-2000.0,0.00027397,30]
[348385938,1736494721800,-2000.0,0.00027397,30]
[348385939,1736494721842,-2000.0,0.00027397,30]
[348385940,1736494721881,-2000.0,0.00027397,30]
[348385941,1736494721917,-2000.0,0.00027397,30]
[348385942,1736494721956,-1693.91524339,0.00027397,30]
[348385943,1736494721994,-200.00582186,0.00027397,60]
[348385944,1736494725319,408.47320688,0.00023297,15]
[348385945,1736494725901,408.47320688,0.00023833,15]
[348385946,1736494726050,408.47320688,0.00023952,15]
[348385947,1736494726407,408.47320688,0.00024189,15]
[348385948,1736494726741,408.47320688,0.00024582,15]
[348385949,1736494727113,408.47320688,0.00024799,15]
[348385950,1736494727482,408.47320688,0.00025185,15]
[348385951,1736494727847,8795.02848,0.00026688,30]
[348385952,1736494727908,408.47320688,0.00025462,15]
[348385953,1736494728152,8795.02848,0.00027088,30]
[348385954,1736494728236,408.47320695,0.00025556,15]
[348385955,1736494728459,8795.02848,0.00026488,30]
[348385956,1736494728767,8795.02848,0.00027288,30]
[348385957,1736494729118,8795.02848,0.00026288,30]
[348385958,1736494729920,8795.02848,0.00026088,30]
[348385959,1736494754874,-800.0,0.00027397,120]
[348385960,1736494754916,-555.55555,0.000274,120]
[348385961,1736494754957,-8795.02848,0.00027488,30]
[348385962,1736494754998,-150.0,0.000275,120]
[348385963,1736494755040,-500.0,0.00027599,120]
[348385964,1736494755080,-555.55555,0.000276,120]
[348385965,1736494755120,-8795.02848,0.00027688,30]
[348385966,1736494755162,-12422.33902959,0.0002773,30]
[348385967,1736494755203,-555.55555,0.000278,120]
[348385968,1736494755245,-1000000.0,0.000278,60]
[348385969,1736494755286,-1673.97983634,0.000278,30]
[348385970,1736494755331,-177.28,0.00027945,91]
[348385971,1736494755373,-5000.0,0.00027999,30]
[348385972,1736494755419,-2000.0,0.00028,120]
[348385973,1736494755465,-555.55555,0.00028,120]
[348385974,1736494755506,-427.05356432,0.00028,120]
[348385975,1736494755548,-150.0,0.00028,120]
[348385976,1736494755588,-500.0,0.00028199,120]
[348385977,1736494755628,-555.55555,0.000282,120]
[348385978,1736494755668,-555.55555,0.000284,120]
[348385979,1736494755708,-150.0,0.000285,120]
[348385980,1736494755751,-555.5556,0.000286,120]
[348385981,1736494755792,-30000.0,0.000287,50]
[348385982,1736494755838,-1253.0,0.000287,31]
[348385983,1736494755881,-1253.0,0.000287,31]
[348385984,1736494755924,-1253.0,0.000287,31]
[348385985,1736494755967,-1253.0,0.000287,31]
[348385986,1736494756008,-1253.0,0.000287,31]
[348385987,1736494756052,-1253.0,0.000287,31]
[348385988,1736494756095,-1253.0,0.000287,31]
[348385989,1736494756138,-1253.0,0.000287,31]
[348385990,1736494756178,-1253.0,0.000287,31]
[348385991,1736494756222,-1253.0,0.000287,31]
[348385992,1736494756269,-1253.0,0.000287,31]
[348385993,1736494756311,-1253.0,0.000287,31]
[348385994,1736494756353,-1253.0,0.000287,31]
[348385995,1736494756397,-1253.0,0.000287,31]
[348385996,1736494756442,-1253.0,0.000287,31]
[348385997,1736494756484,-1253.0,0.000287,31]
[348385998,1736494756525,-1253.0,0.000287,31]
[348385999,1736494756565,-1253.0,0.000287,31]
[348386000,1736494756607,-1253.0,0.000287,31]
[348386001,1736494756647,-1253.0,0.000287,31]
[348386002,1736494756690,-1253.0,0.000287,31]
[348386003,1736494756731,-1253.0,0.000287,31]
[348386004,1736494756772,-1253.0,0.000287,31]
[348386005,1736494756811,-1253.0,0.000287,31]
[348386006,1736494756850,-500.0,0.00028799,120]
[348386007,1736494756887,-1800.0,0.00029,30]
[348386008,1736494756926,-150.0,0.00029,120]
[348386009,1736494756965,-341.84924243,0.000292,120]
[348386010,1736494757002,-500.0,0.00029399,120]
[348386011,1736494757041,-150.0,0.000295,120]
[348386012,1736494757080,-2222.48,0.00029578,30]
[348386013,1736494757121,-844224.41259022,0.000297,30]
[348386014,1736494757160,-155.654,0.0002989,120]
[348386015,1736494757201,-500.0,0.00029999,120]
[348386016,1736494757241,-1800.0,0.0003,31]
[348386017,1736494757282,-42154.0058771,0.0003,30]
[348386018,1736494760935,-158845.9941229,0.0003,30]
[348386019,1736494760975,-15000.0,0.0003,60]
[348386020,1736494761015,-10000.0,0.0003,40]
[348386021,1736494761056,-1046.49337527,0.0003,120]
[348386022,1736494761096,-284.40461623,0.0003,120]
[348386023,1736494761134,-1000.0,0.0003,120]
[348386024,1736494761174,-583.0,0.0003,120]
[348386025,1736494761214,-2000.0,0.0003,120]
[348386026,1736494761251,-25010.51,0.0003,120]
[348386027,1736494761290,-3000.0,0.0003,120]
[348386028,1736494761329,-167.17777778,0.0003,120]
[348386029,1736494761365,-258.97777778,0.0003,120]
[348386030,1736494761407,-2049.54053646,0.0003,120]
[348386031,1736494761448,-17021.458922,0.0003,30]
[348386032,1736494761493,-20000.0,0.0003,120]
[348386033,1736494761533,-20000.0,0.0003,120]
[348386034,1736494761573,-20000.0,0.0003,120]
[348386035,1736494761614,-30000.0,0.0003,120]
[348386036,1736494761657,-211.1111,0.0003,120]
[348386037,1736494761696,-200.0,0.0003,120]
[348386038,1736494761738,-500.0,0.0003,30]
[348386039,1736494761779,-30000.0,0.000301,66]
[348386040,1736494761819,-200.0,0.00030137,60]
[348386041,1736494761859,-500.0,0.00030599,120]
[348386042,1736494761898,-548.0,0.00030613,30]
[348386043,1736494761938,-250.0,0.000308,30]
[348386044,1736494761978,-258.97777778,0.00030849,120]
[348386045,1736494762017,-167.17777778,0.00030959,120]
[348386046,1736494762058,-1800.0,0.00031,32]
[348386047,1736494762098,-10000.0,0.00031,120]
[348386048,1736494762138,-10000.0,0.00031,120]
[348386049,1736494762178,-58888.34478075,0.00031,120]
[348386050,1736494762217,-4405.28139664,0.00031,120]
[348386051,1736494762256,-155.646,0.0003109,120]
[348386052,1736494762295,-500.0,0.00031199,120]
[348386053,1736494762334,-35162.64722575,0.000314,30]
[348386054,1736494762375,-258.97777778,0.00031699,120]
[348386055,1736494762419,-500.0,0.00031799,120]
[348386056,1736494762463,-1835.8,0.000319,30]
[348386057,1736494762504,-167.17777778,0.00031918,120]
[348386058,1736494762546,-1800.0,0.00032,33]
[348386059,1736494762841,-2000.0,0.00032,120]
[348386060,1736494762883,-55377.69816409,0.00032,60]
[348386061,1736494762925,-750.0,0.00032,120]
[348386062,1736494762968,-2222.48,0.00032162,30]
[348386063,1736494763009,-155.604,0.0003229,120]
[348386064,1736494763051,-1000.0,0.00032345,60]
[348386065,1736494763091,-500.0,0.00032399,120]
[348386066,1736494763131,-200.0,0.000325,120]
[348386067,1736494763169,-258.97777778,0.00032548,120]
[348386068,1736494763207,-5000.0,0.00032876,30]
[348386069,1736494763247,-200.0,0.00032877,60]
[348386070,1736494763286,-167.17777778,0.00032877,120]
[348386071,1736494763326,-35000.0,0.0003288,120]
[348386072,1736494763365,-500.0,0.00032999,120]
[348386073,1736494763411,-1800.0,0.00033,34]
[348386074,1736494763453,-1000.0,0.00033,120]
[348386075,1736494763493,-2452.73724672,0.00033,120]
[348386076,1736494763530,-194.95534931,0.00033,120]
[348386077,1736494763568,-10000.0,0.00033,120]
[348386078,1736494763607,-260286.0,0.00033,30]
[348386079,1736494763649,-3002.49653,0.00033,31]
[348386080,1736494763685,-600.0,0.00033316,60]
[348386081,1736494763724,-258.97777778,0.00033397,120]
[348386082,1736494763759,-155.599,0.0003349,120]
[348386083,1736494763800,-1253.0,0.000335,31]
[348386084,1736494763838,-1253.0,0.000335,31]
[348386085,1736494763876,-1253.0,0.000335,31]
[348386086,1736494763914,-1253.0,0.000335,31]
[348386087,1736494763952,-1253.0,0.000335,31]
[348386088,1736494763996,-1253.0,0.000335,31]
[348386089,1736494764040,-1253.0,0.000335,31]
[348386090,1736494764082,-1253.0,0.000335,31]
[348386091,1736494764122,-1253.0,0.000335,31]
[348386092,1736494764163,-1253.0,0.000335,31]
[348386093,1736494764202,-1253.0,0.000335,31]
[348386094,1736494764246,-1253.0,0.000335,31]
[348386095,1736494764283,-500.0,0.00033599,120]
[348386096,1736494764325,-768.0,0.00033674,30]
[348386097,1736494764363,-167.17777778,0.00033836,120]
[348386098,1736494764407,-3000.0,0.00034,120]
[348386099,1736494764449,-100000.01,0.00034,120]
[348386100,1736494764491,-1800.0,0.00034,35]
[348386101,1736494764530,-500.0,0.00034199,120]
[348386102,1736494764568,-5000.0,0.00034246,30]
[348386103,1736494764606,-258.97777778,0.00034247,120]
[348386104,1736494764644,-600.0,0.00034412,60]
[348386105,1736494764681,-155.607,0.0003469,120]
[348386106,1736494764719,-2222.48,0.00034746,120]
[348386107,1736494764756,-167.17777778,0.00034795,120]
[348386108,1736494764795,-500.0,0.00034799,120]
[348386109,1736494764832,-1000.0,0.00035,120]
[348386110,1736494764871,-7484.62738447,0.00035,120]
[348386111,1736494764910,-7468.77831608,0.00035,120]
[348386112,1736494764949,-20975.98867059,0.00035,30]
[348386113,1736494764993,-10000.0,0.00035,120]
[348386114,1736494765035,-10000.0,0.00035,120]
[348386115,1736494765077,-362210.68917268,0.00035,60]
[348386116,1736494765119,-20000.0,0.00035,120]
[348386117,1736494765160,-78709.92959524,0.00035,120]
[348386118,1736494765202,-3250.91655316,0.00035,120]
[348386119,1736494765244,-167.77212771,0.00035,120]
[348386120,1736494765285,-500.0,0.00035,120]
[348386121,1736494765325,-594.92058048,0.00035,120]
[348386122,1736494765365,-24821.16320719,0.00035,30]
[348386123,1736494765411,-54854.07613874,0.00035,120]
[348386124,1736494765451,-258.97777778,0.00035096,120]
[348386125,1736494765495,-7138.97242479,0.000351,30]
[348386126,1736494765536,-177.28,0.00035342,91]
[348386127,1736494765576,-500.0,0.00035399,120]
[348386128,1736494765616,-600.0,0.00035508,60]
[348386129,1736494765656,-1957.88946049,0.00035616,30]
[348386130,1736494765697,-200.0,0.00035616,60]
[348386131,1736494765740,-167.17777778,0.00035753,120]
[348386132,1736494765780,-155.607,0.0003589,120]
[348386133,1736494765818,-258.97777778,0.00035945,120]
[348386134,1736494765859,-500.0,0.00035987,120]
[348386135,1736494765901,-500.0,0.00035999,120]
[348386136,1736494765942,-3000.0,0.00036,120]
[348386137,1736494765982,-600.0,0.00036,120]
[348386138,1736494766029,-500.0,0.00036599,120]
[348386139,1736494766067,-600.0,0.00036604,60]
[348386140,1736494766105,-2610.38085255,0.00036666,120]
[348386141,1736494766143,-167.17777778,0.00036712,120]
[348386142,1736494766183,-258.97777778,0.00036795,120]
[348386143,1736494766223,-1000.0,0.00037,120]
[348386144,1736494766262,-7000.0,0.00037,90]
[348386145,1736494766314,-10047.3666724,0.00037,30]
[348386146,1736494766357,-324.84265656,0.00037,120]
[348386147,1736494766398,-15802.0,0.00037,117]
[348386148,1736494766440,-1075.0,0.00037042,30]
[348386149,1736494766483,-500.0,0.00037199,120]
[348386150,1736494766523,-2222.48,0.0003733,120]
[348386151,1736494766565,-973.63993756,0.000375,120]
[348386152,1736494766605,-8411.87763264,0.000375,120]
[348386153,1736494766852,-50000.0,0.000375,120]
[348386154,1736494766895,-258.97777778,0.00037644,120]
[348386155,1736494766934,-167.17777778,0.00037671,120]
[348386156,1736494766974,-405.8647602,0.000377,60]
[348386157,1736494767014,-500.0,0.00037799,120]
[348386158,1736494767053,-10643.54059167,0.00037999,120]
[348386159,1736494767094,-3000.0,0.00038,120]
[348386160,1736494767133,-2500.0,0.00038,120]
[348386161,1736494767173,-10000.0,0.00038,60]
[348386162,1736494767210,-10000.0,0.00038,30]
[348386163,1736494767252,-946.60793031,0.00038,120]
[348386164,1736494767290,-315.15903153,0.00038,120]
[348386165,1736494767328,-3498.15255443,0.00038,120]
[348386166,1736494767365,-8449.64740629,0.00038,120]
[348386167,1736494767409,-460.060691,0.00038,30]
[348386168,1736494767447,-642.794047,0.00038141,120]
[348386169,1736494767495,-491.52869575,0.00038325,120]
[348386170,1736494767536,-200.0,0.00038356,60]
[348386171,1736494769147,557.896,0.00037972,120]
[348386172,1736494769204,557.896,0.00037972,120]
[348386173,1736494769248,1340.435,0.00034925,40]
[348386174,1736494769331,557.896,0.00037972,120]
[348386175,1736494769441,557.897,0.00037972,120]
[348386176,1736494769494,557.896,0.00037972,120]
[348386177,1736494952420,1140.19,8.219e-05,2]
[348386178,1736494967502,200.0,0.0002,120]
[348386210,1736495315430,-15000.0,0.0001,5]
[348386225,1736495432233,-250.0,8.962e-05,2]
[348386226,1736495432243,-201.72001,8.975e-05,2]
[348386227,1736495432382,-342.78214069,8.975e-05,2]
[348386228,1736495432533,-252.57784931,8.975e-05,2]
[348386229,1736495432543,-225.60921473,9e-05,2]
[348386230,1736495432552,-250.0,9.147e-05,2]
[348386231,1736495432563,-1000.0,9.2e-05,2]
[348386232,1736495432572,-546.34,9.204e-05,2]
[348386233,1736495432581,-176.28862987,9.213e-05,2]
[348386235,1736495432592,-618.27929359,9.213e-05,2]
[348386237,1736495432603,-1953.93207654,9.213e-05,2]
[348386240,1736495432613,-150.0,9.799e-05,2]
[348386242,1736495432622,-300.0,9.799e-05,2]
[348386244,1736495432631,-938.31191385,9.8e-05,2]
[348386246,1736495432642,-1080.6050125,9.8e-05,2]
[348386248,1736495432654,-1191.87,9.8e-05,2]
[348386255,1736495438102,-854.70731206,9.8e-05,2]
[348386256,1736495438358,-86087.22899359,9.8e-05,2]
[348386257,1736495438368,-150.0,9.808e-05,2]
[348386258,1736495438378,-10644.9664169,9.84e-05,2]
[348386259,1736495438388,-979.82,9.86e-05,2]
[348386260,1736495438398,-150.0,9.86e-05,2]
[348386261,1736495438408,-150.0,9.86e-05,2]
[348386262,1736495438418,-150.0,9.86e-05,2]
[348386263,1736495438428,-979.82,9.86e-05,2]
[348386264,1736495438438,-719.4642,9.897e-05,2]
[348386265,1736495438447,-1340.435,9.9e-05,2]
[348386266,1736495438459,-889.34,9.996e-05,2]
[348386267,1736495438468,-803.66,9.996e-05,2]
[348386268,1736495438480,-1179.11,9.996e-05,2]
[348386269,1736495438490,-1202.54,9.996e-05,2]
[348386270,1736495438500,-1716.87,9.996e-05,2]
[348386271,1736495438509,-1050.63,9.996e-05,2]
[348386272,1736495438519,-3581.14,9.996e-05,2]
[348386273,1736495438529,-1604.6,9.996e-05,2]
[348386274,1736495438539,-2189.23,9.996e-05,2]
[348386275,1736495438548,-1552.97,9.996e-05,2]
[348386276,1736495438559,-500.0,9.996e-05,2]
[348386277,1736495438572,-1035.48,9.996e-05,2]
[348386278,1736495438581,-2692.79,9.996e-05,2]
[348386279,1736495438591,-886.69,9.996e-05,2]
[348386280,1736495438600,-1158.61,9.996e-05,2]
[348386281,1736495438609,-1657.42,9.996e-05,2]
[348386282,1736495438619,-500.0,9.996e-05,2]
[348386283,1736495438629,-2109.48,9.996e-05,2]
[348386284,1736495438638,-1028.15,9.996e-05,2]
[348386285,1736495438648,-500.0,9.996e-05,2]
[348386286,1736495438657,-1708.22,9.996e-05,2]
[348386287,1736495438666,-500.0,9.996e-05,2]
[348386288,1736495438676,-735.65,9.996e-05,2]
[348386289,1736495438685,-500.0,9.996e-05,2]
[348386290,1736495438694,-727.46,9.996e-05,2]
[348386291,1736495438704,-500.0,9.996e-05,2]
[348386292,1736495438714,-1240.35,9.996e-05,2]
[348386293,1736495438723,-965.58,9.996e-05,2]
[348386294,1736495438734,-500.0,9.997e-05,2]
[348386295,1736495438743,-500.0,9.997e-05,2]
[348386296,1736495438753,-500.0,9.997e-05,2]
[348386297,1736495438762,-500.0,9.997e-05,2]
[348386298,1736495438772,-501.29695914,9.997e-05,2]
[348386299,1736495438781,-502.79720333,9.997e-05,2]
[348386300,1736495438792,-502.4892401,9.997e-05,2]
[348386301,1736495438801,-500.0,9.997e-05,2]
[348386302,1736495438810,-504.36883084,9.997e-05,2]
[348386303,1736495438819,-500.0,9.997e-05,2]
[348386304,1736495438829,-548.96103712,9.997e-05,2]
[348386305,1736495438838,-500.0,9.997e-05,2]
[348386306,1736495438847,-500.0,9.997e-05,2]
[348386307,1736495438856,-502.50086655,9.997e-05,2]
[348386308,1736495438865,-509.04147935,9.997e-05,2]
[348386309,1736495438874,-472.48458383,9.997e-05,2]
[348386310,1736495438883,-773.49,9.997e-05,2]
[348386311,1736495438893,-515.92159138,9.997e-05,2]
[348386312,1736495438902,-516.36724962,9.997e-05,2]
[348386313,1736495438911,-500.0,9.997e-05,2]
[348386314,1736495438921,-508.32434252,9.997e-05,2]
[348386315,1736495438930,-1617.78,9.997e-05,2]
[348386316,1736495438939,-564.75,9.997e-05,2]
[348386317,1736495438948,-500.0,9.997e-05,2]
[348386318,1736495438957,-861.45,9.997e-05,2]
[348386319,1736495438966,-500.0,9.997e-05,2]
[348386320,1736495438975,-527.22,9.997e-05,2]
[348386321,1736495438984,-2238.96,9.997e-05,2]
[348386322,1736495438994,-500.0,9.997e-05,2]
[348386323,1736495439003,-1308.85,9.997e-05,2]
[348386324,1736495439012,-500.0,9.997e-05,2]
[348386325,1736495439022,-500.0,9.997e-05,2]
[348386326,1736495439031,-500.0,9.997e-05,2]
[348386327,1736495439040,-1360.71,9.997e-05,2]
[348386328,1736495439049,-502.4254496,9.997e-05,2]
[348386329,1736495439059,-500.0,9.997e-05,2]
[348386330,1736495439068,-523.86,9.997e-05,2]
[348386331,1736495439077,-2277.77,9.997e-05,2]
[348386332,1736495439086,-500.0,9.997e-05,2]
[348386333,1736495439096,-500.0,9.997e-05,2]
[348386334,1736495439105,-500.0,9.997e-05,2]
[348386335,1736495439114,-500.0,9.997e-05,2]
[348386336,1736495439123,-1218.29,9.997e-05,2]
[348386337,1736495439132,-500.0,9.997e-05,2]
[348386338,1736495439141,-216.23,9.997e-05,2]
[348386339,1736495439150,-500.0,9.997e-05,2]
[348386340,1736495439159,-508.82,9.997e-05,2]
[348386341,1736495439168,-639.94682435,9.997e-05,2]
[348386342,1736495439178,-500.0,9.997e-05,2]
[348386343,1736495439187,-5532.34,9.997e-05,2]
[348386344,1736495439196,-500.0,9.997e-05,2]
[348386345,1736495439205,-1071.07,9.997e-05,2]
[348386346,1736495439214,-500.0,9.997e-05,2]
[348386347,1736495439223,-500.0,9.997e-05,2]
[348386348,1736495439235,-500.0,9.997e-05,2]
[348386349,1736495439245,-682.6,9.997e-05,2]
[348386350,1736495439254,-500.0,9.997e-05,2]
[348386351,1736495439263,-500.0,9.997e-05,2]
[348386352,1736495439273,-500.0,9.997e-05,2]
[348386353,1736495439282,-603.58,9.997e-05,2]
[348386354,1736495439291,-500.0,9.997e-05,2]
[348386355,1736495439301,-510.47,9.997e-05,2]
[348386356,1736495439311,-500.0,9.997e-05,2]
[348386357,1736495439320,-583.89,9.997e-05,2]
[348386358,1736495439331,-235.40787081,9.997e-05,2]
[348386359,1736495439341,-500.0,9.997e-05,2]
[348386360,1736495439357,-1000.0,9.997e-05,2]
[348386361,1736495439369,-500.0,9.997e-05,2]
[348386362,1736495439382,-500.0,9.997e-05,2]
[348386363,1736495439394,-500.0,9.997e-05,2]
[348386364,1736495439407,-500.0,9.997e-05,2]
[348386365,1736495439418,-500.0,9.997e-05,2]
[348386366,1736495439429,-500.0,9.997e-05,2]
[348386367,1736495439439,-500.0,9.997e-05,2]
[348386368,1736495439451,-500.0,9.997e-05,2]
[348386369,1736495439463,-500.0,9.997e-05,2]
[348386370,1736495439474,-409.13144183,9.997e-05,2]
[348386371,1736495439488,-467.18105834,9.997e-05,2]
[348386372,1736495439500,-500.0,9.997e-05,2]
[348386373,1736495439512,-500.0,9.997e-05,2]
[348386374,1736495439523,-500.0,9.997e-05,2]
[348386375,1736495439535,-1063.04,9.997e-05,2]
[348386376,1736495439546,-785.13,9.997e-05,2]
[348386377,1736495439557,-500.0,9.997e-05,2]
[348386378,1736495439571,-500.0,9.997e-05,2]
[348386379,1736495439582,-500.0,9.997e-05,2]
[348386380,1736495439593,-520.77727633,9.997e-05,2]
[348386381,1736495439606,-592.94660106,9.997e-05,2]
[348386382,1736495439617,-979.64,9.997e-05,2]
[348386383,1736495439628,-197.91,9.997e-05,2]
[348386384,1736495439640,-500.0,9.997e-05,2]
[348386385,1736495439653,-500.0,9.997e-05,2]
[348386386,1736495439666,-500.0,9.997e-05,2]
[348386387,1736495439677,-500.0,9.997e-05,2]
[348386388,1736495439689,-609.23,9.997e-05,2]
[348386389,1736495439701,-500.0,9.997e-05,2]
[348386390,1736495439713,-500.0,9.997e-05,2]
[348386391,1736495439726,-500.0,9.997e-05,2]
[348386392,1736495439742,-530.23,9.997e-05,2]
[348386393,1736495439753,-500.0,9.997e-05,2]
[348386394,1736495439764,-678.51,9.997e-05,2]
[348386395,1736495439777,-500.0,9.997e-05,2]
[348386396,1736495439789,-426.11403526,9.997e-05,2]
[348386397,1736495439801,-500.0,9.997e-05,2]
[348386398,1736495439813,-500.0,9.997e-05,2]
[348386399,1736495439825,-500.0,9.997e-05,2]
[348386400,1736495439838,-500.0,9.997e-05,2]
[348386401,1736495439849,-500.0,9.997e-05,2]
[348386402,1736495439860,-500.0,9.997e-05,2]
[348386403,1736495439872,-500.0,9.997e-05,2]
[348386404,1736495439883,-513.7181214,9.997e-05,2]
[348386405,1736495439895,-537.72,9.997e-05,2]
[348386407,1736495439907,-500.0,9.997e-05,2]
[348386408,1736495439918,-563.23929815,9.997e-05,2]
[348386410,1736495439929,-500.0,9.997e-05,2]
[348386411,1736495439940,-698.07,9.997e-05,2]
[348386412,1736495439950,-500.0,9.997e-05,2]
[348386413,1736495439961,-500.0,9.997e-05,2]
[348386414,1736495439971,-749.54,9.997e-05,2]
[348386415,1736495439988,-500.0,9.997e-05,2]
[348386416,1736495440000,-540.50589713,9.997e-05,2]
[348386419,1736495440013,-500.0,9.997e-05,2]
[348386421,1736495440028,-500.0,9.997e-05,2]
[348386423,1736495440038,-500.0,9.997e-05,2]
[348386424,1736495440049,-500.0,9.997e-05,2]
[348386426,1736495440059,-495.0,9.997e-05,2]
[348386428,1736495440070,-500.0,9.997e-05,2]
[348386430,1736495440080,-500.0,9.997e-05,2]
[348386433,1736495440092,-482.62071834,9.997e-05,2]
[348386435,1736495440104,-500.0,9.997e-05,2]
[348386437,1736495440116,-500.0,9.997e-05,2]
[348386439,1736495440128,-500.0,9.997e-05,2]
[348386441,1736495440140,-500.0,9.997e-05,2]
[348386444,1736495440151,-500.0,9.997e-05,2]
[348386446,1736495440161,-500.0,9.997e-05,2]
[348386448,1736495440172,-500.0,9.997e-05,2]
[348386450,1736495440182,-500.0,9.997e-05,2]
[348386452,1736495440194,-500.0,9.997e-05,2]
[348386453,1736495440206,-500.0,9.997e-05,2]
[348386454,1736495440217,-500.0,9.997e-05,2]
[348386455,1736495440228,-500.0,9.997e-05,2]
[348386456,1736495440244,-500.0,9.997e-05,2]
[348386457,1736495440255,-500.0,9.997e-05,2]
[348386458,1736495440266,-500.0,9.997e-05,2]
[348386459,1736495440276,-659.28,9.997e-05,2]
[348386460,1736495440287,-500.0,9.997e-05,2]
[348386461,1736495440298,-500.0,9.997e-05,2]
[348386462,1736495440311,-500.0,9.997e-05,2]
[348386463,1736495440322,-500.0,9.997e-05,2]
[348386464,1736495440335,-723.93,9.997e-05,2]
[348386465,1736495440346,-500.0,9.997e-05,2]
[348386466,1736495440357,-500.0,9.997e-05,2]
[348386467,1736495440368,-807.24,9.997e-05,2]
[348386468,1736495440379,-503.07,9.997e-05,2]
[348386469,1736495440390,-582.56,9.997e-05,2]
[348386470,1736495440401,-500.0,9.997e-05,2]
[348386471,1736495440413,-772.43,9.997e-05,2]
[348386472,1736495440423,-582.01,9.997e-05,2]